Cogmind - Beta 11.1 @@@ ROGUE MODE // 2022.10.14 @ 20:35:30 Player: MAC-Bot 2145 Result: Destroyed by G-34 Mercenary with Small Laser Performance ------------- Evolutions (0) 0 Regions Visited (2) 400 Robots Destroyed (5) 25 Value Destroyed (203) 203 Prototype IDs (0) 0 Alien Tech Used (0) 0 Bonus (0) 0 TOTAL SCORE: 628 Bonus ------- None Cogmind --------- Core Integrity 0/250 Matter 300/300 Energy 250/250 System Corruption 0% Temperature Cool (6) Movement Core (100) Ox1 Location -10/Mines Parts ------- > --- POWER (1) -------- Ion Engine > --- PROPULSION (2) --- (None) > --- UTILITY (2) ------ (None) > --- WEAPON (2) ------- Small Laser > --- INVENTORY (5) ---- Terrain Scanner Terrain Scanner ECM Suite Light Armor Plating Tractor Beam Peak State ------------ > --- POWER ------------ Light Ion Engine > --- PROPULSION ------- Wheel Wheel > --- UTILITY ---------- High-capacity Storage Unit Terrain Scanner > --- WEAPON ----------- EM Pulse Gun Medium Laser > --- INVENTORY -------- Ion Engine Sensor Array Terrain Scanner ECM Suite Core Shielding Light Armor Plating Light Armor Plating Tractor Beam Small Laser Welding Torch [Rating: 8] Favorites ----------- Power Light Ion Engine Engine Light Ion Engine Propulsion Wheel Wheel Wheel Utility High-capacity Storage Unit Device Terrain Scanner Storage High-capacity Storage Unit Protection Light Armor Plating Weapon Medium Laser Energy Gun Medium Laser Special Weapon Welding Torch Build | -11 -10 -10 ------- Run | Scr Mat Min Slots Evolved . | . . . Power . | . . . Propulsion . | . . . Utility . | . . . Weapon . | . . . Parts Attached 16 | 6 4 6 Power 3 | 1 1 1 Engine 3 | 1 1 1 Core . | . . . Reactor . | . . . Propulsion 2 | 2 . . Treads . | . . . Leg . | . . . Wheel 2 | 2 . . Hover . | . . . Flight . | . . . Utility 5 | 1 2 2 Device 1 | . 1 . Storage 2 | 1 1 . Processor . | . . . Hackware . | . . . Protection 2 | . . 2 Artifact . | . . . Weapon 6 | 2 1 3 Energy Gun 5 | 2 1 2 Energy Cannon . | . . . Ballistic Gun . | . . . Ballistic Cannon . | . . . Launcher . | . . . Special Weapon 1 | . . 1 Impact Weapon . | . . . Slashing Weapon . | . . . Piercing Weapon . | . . . Special Melee Weapon . | . . . Unidentified Prototypes . | . . . Parts Lost 7 | . . 7 Power 1 | . . 1 Propulsion 2 | . . 2 Utility . | . . . Weapon 4 | . . 4 Highest Loss Streak 7 | . . 7 To Critical Strikes . | . . . Average Slot Usage (%) 86 | . 98 62 Engine 13 | . 14 13 Wheel 22 | . 28 12 Device 8 | . 13 . Storage 12 | . 14 8 Protection 2 | . . 8 Energy Gun 25 | . 28 19 Naked Turns . | . . . Heaviest Build 50 | 13 48 50 Greatest Support 20 | 20 20 20 Greatest Overweight (x) 4 | 1 2 4 Average Overweight (x) 1 | . 1 1 Largest Inventory Capacity 20 | 8 20 20 Average Capacity 16 | 7 19 14 Most Carried 12 | 2 10 12 Average Carried 6 | 1 5 8 Final Capacity 20 | 8 20 5 Final Carried 10 | 2 10 5 Class Distribution -------------------- 100% | Mutant Dominant Class ---------------- Mutant | -10/Materials Mutant | -10/Mines Resources | -11 -10 -10 ----------- Run | Scr Mat Min Matter Collected 335 | 176 16 143 Remotely . | . . . Salvage Created 137 | . 16 121 Parts 4 | . 1 3 Haulers Intercepted . | . . . Recyclers Shooed . | . . . Parts Field Recycled . | . . . Retrieved Matter . | . . . Parts Self-Destructed . | . . . Prevented . | . . . Kills | -11 -10 -10 ------- Run | Scr Mat Min Combat Hostiles Destroyed 6 | . . 6 Guns 5 | . . 5 AOE 1 | . . 1 Classes Destroyed 4 | . 1 3 Watcher 1 | . 1 . Grunt 2 | . . 2 Demolisher 2 | . . 2 Assembled 2 | . . 2 Best Kill Streak 2 | . 1 2 Combat Bots Only 2 | . . 2 Max Kills in Single Turn 2 | . 1 2 Gunslinging . | . . . Exploded 1 | . . 1 Melee . | . . . Uniques/NPCs Destroyed . | . . . Combat | -11 -10 -10 -------- Run | Scr Mat Min Damage Taken 711 | . . 711 Core 251 | . . 251 Absorbed by Shields . | . . . Redirected to Shielding 27 | . . 27 Core Remaining (%) 100 | 100 . . Volleys Fired 15 | . 1 14 Largest 2 | . 2 2 Hottest 115 | . 90 115 Shots Fired 28 | . 2 26 Gun 28 | . 2 26 Cannon . | . . . Launcher . | . . . Special . | . . . Kinetic . | . . . Thermal 18 | . 1 17 Explosive . | . . . Electromagnetic 10 | . 1 9 Robot Hit Streak 6 | . 1 6 Robot Miss Streak 4 | . 1 4 Penetration Max . | . . . Secondary Targets . | . . . Shots Hit Robots 16 | . 1 15 Core Hits 11 | . 1 10 Critical Kills . | . . . Critical Parts Destroyed . | . . . Critical Strikes 2 | . 1 1 Burn 2 | . 1 1 Melee Attacks . | . . . Impact . | . . . Slashing . | . . . Piercing . | . . . Sneak Attacks . | . . . Combat Hostiles . | . . . Follow-up Attacks . | . . . Damage Inflicted 320 | . 12 308 Guns 230 | . 12 218 Cannons . | . . . Explosions 90 | . . 90 Melee . | . . . Ramming . | . . . Kinetic . | . . . Thermal 248 | . 12 236 Explosive . | . . . Electromagnetic 72 | . . 72 Impact . | . . . Slashing . | . . . Piercing . | . . . Highest Corruption . | . . . Average Corruption . | . . . Corruption Purged . | . . . Corruption Blocked . | . . . Overload Shots . | . . . Overflow Damage . | . . . Projectiles . | . . . Explosions . | . . . Melee . | . . . Knockbacks . | . . . Impact . | . . . Kinetic . | . . . Secondary . | . . . Self-Inflicted Damage 14 | . . 14 Shots 1 | . . 1 Rammed . | . . . Targets Rammed . | . . . Kicked . | . . . Crushed . | . . . Highest Temperature 242 | . 30 242 Average Temperature 107 | . 17 112 Received Heat Transfer 140 | . . 140 Siege Activations . | . . . Robots Corrupted . | . . . Combat Hostiles . | . . . Parts Fried . | . . . Impact Corruptions . | . . . Robots Melted . | . . . Combat Hostiles . | . . . Parts Melted . | . . . Heat Transferred 630 | . 111 519 Parts Sabotaged . | . . . Parts Stolen . | . . . Parts Stripped . | . . . Power Chain Reactions 1 | . . 1 Missiles Intercepted . | . . . Alert | -11 -10 -10 ------- Run | Scr Mat Min Peak Influence 73 | . 7 73 Initial 2 | . . 2 Average 14 | . . 49 Maximum Alert Level . | . . . Low Security (%) 100 | 100 100 100 Level 1 . | . . . Level 2 . | . . . Level 3 . | . . . Level 4 . | . . . Level 5 . | . . . High Security . | . . . Max Security . | . . . Squads Dispatched 1 | . 1 . Investigation 1 | . 1 . Extermination . | . . . Reinforcement . | . . . Assault . | . . . Garrison . | . . . Intercept . | . . . Searches Triggered . | . . . Construction Impeded . | . . . Haulers Reinforced . | . . . Active Scanning Responses . | . . . Cargo Convoy Interrupts . | . . . Stealth | -11 -10 -10 --------- Run | Scr Mat Min Distress Signals . | . . . Communications Jammed . | . . . Distress Signals . | . . . Times Spotted 14 | . 6 8 Peak Tracking Total 6 | . 6 2 Tactical Retreats . | . . . Traps | -11 -10 -10 ------- Run | Scr Mat Min Traps Triggered 1 | . 1 . Indirectly . | . . . Trap Hack Attempts . | . . . Triggered . | . . . Disarmed . | . . . Reprogrammed . | . . . Reused . | . . . Traps Extracted . | . . . Installed . | . . . Triggered . | . . . Machines | -11 -10 -10 ---------- Run | Scr Mat Min Machines Disabled . | . . . Max in Single Turn . | . . . Machines Sabotaged . | . . . Garrisons Compromised . | . . . Overloaded Fab Kills . | . . . Hacking | -11 -10 -10 --------- Run | Scr Mat Min Machines Accessed 3 | . 3 . Terminals 2 | . 2 . Fabricators . | . . . Repair Stations . | . . . Recycling Units 1 | . 1 . Scanalyzers . | . . . Garrison Access . | . . . Total Hacks 5 | . 5 . Successful 3 | . 3 . Failed 2 | . 2 . Catastrophic 1 | . 1 . Database Lockouts . | . . . Manual . | . . . Terminals 4 | . 4 . Fabricators . | . . . Repair Stations . | . . . Recycling Units 1 | . 1 . Scanalyzers . | . . . Garrison Access . | . . . Terminal Hacks 2 | . 2 . Record 1 | . 1 . Robot Analysis 1 | . 1 . Fabricator Hacks . | . . . Repair Station Hacks . | . . . Recycling Unit Hacks 1 | . 1 . Retrieve Components 1 | . 1 . Scanalyzer . | . . . Garrison Access Hacks . | . . . Unauthorized Hacks . | . . . Terminals . | . . . Fabricators . | . . . Repair Stations . | . . . Recycling Units . | . . . Scanalyzers . | . . . Garrison Access . | . . . Data Cores Recovered . | . . . Used . | . . . Hacking Detections 2 | . 2 . Full Trace Events . | . . . Feedback Events . | . . . Feedback Blocked . | . . . Robot Schematics Acquired . | . . . Robots Built . | . . . Authchips . | . . . Time . | . . . Total Robot Build Rating . | . . . Part Schematics Acquired . | . . . Parts Built . | . . . Authchips . | . . . Time . | . . . Total Part Build Rating . | . . . Parts Repaired . | . . . Time . | . . . Parts Recycled . | . . . Recycled Matter . | . . . Retrieved Matter . | . . . Retrieved Components 2 | . 2 . Parts Scanalyzed . | . . . Part Schematics Acquired . | . . . Parts Damaged . | . . . Bothacking | -11 -10 -10 ------------ Run | Scr Mat Min Used RIF Installer . | . . . Robots Hacked . | . . . Non-combat . | . . . Combat . | . . . Robot Hacks Applied . | . . . Relay Couplers Released . | . . . Fabnet Peak Effective % . | . . . Robots Rewired . | . . . Allies Hacked . | . . . Hacks Repelled . | . . . Allies | -11 -10 -10 -------- Run | Scr Mat Min Total Allies . | . . . Largest Group . | . . . Highest-Rated Group . | . . . Highest-Rated Ally . | . . . Total Orders . | . . . Ally Attacks . | . . . Total Damage . | . . . Kills . | . . . Allies Corrupted . | . . . Allies Melted . | . . . Intel | -11 -10 -10 ------- Run | Scr Mat Min Robot Analysis Total 1 | . 1 . Derelict Logs Recovered . | . . . Drone Launches . | . . . Drone Recoveries . | . . . Exploration | -11 -10 -10 ------------- Run | Scr Mat Min Turns Passed 480 | 57 280 143 Spaces Moved 340 | 55 198 87 Core 65 | 10 . 55 Treads . | . . . Legs . | . . . Wheels 275 | 45 198 32 Hover . | . . . Flight . | . . . Fastest Speed 50 | 50 80 100 Average Speed 102 | 78 106 106 Slowest Speed 140 | 100 110 140 Overloaded Moves . | . . . Propulsion Burnouts . | . . . Robots Hopped . | . . . Cave-ins Triggered . | . . . Exploration Rate (%) 24 | 4 44 25 Regions Visited 2 Branch Regions 1 Pre-discovered Areas . | . . . Known Exits Taken . | . . . Unknown Exits Taken 2 | 1 1 . Scrap Searched . | . . . Spaces Dug . | . . . Terrain Destroyed 2 | . . 2 Melee . | . . . Projectile . | . . . AOE 2 | . . 2 Terrain Rammed . | . . . Walls Destroyed . | . . . Machines Disabled . | . . . Actions | -11 -10 -10 --------- Run | Scr Mat Min Total 444 | 68 265 111 Wait 50 | . 50 . Move 338 | 54 197 87 Hop . | . . . Pick Up 20 | 8 10 2 Fast Attach . | . . . Attach 13 | 6 3 4 Detach 2 | . 2 . Swap 3 | . 1 2 Drop 3 | . 1 2 Fire 15 | . 1 14 Melee . | . . . Ram . | . . . Kick . | . . . Crush . | . . . Escape Stasis . | . . . Rewire . | . . . Trap . | . . . Miscellaneous . | . . . Route ------- -11/Scrapyard -10/Materials -10/Mines History --------- Turn | Location | Event 28 | -11/Scrapyard | Discovered new exit (range 16) 58 | -11/Scrapyard | Entered Materials 299 | -10/Materials | Discovered new exit (range 16) 313 | -10/Materials | Build established: Mutant 338 | -10/Materials | Entered Mines 339 | -10/Mines | Assembled infested the area 413 | -10/Mines | Core integrity fell below 50% 420 | -10/Mines | Core integrity fell below 20% 453 | -10/Mines | Lost 7 parts (1p2n4w) 481 | -10/Mines | Destroyed by G-34 Mercenary with Small Laser Last Messages --------------- EM Pulse Gun destroyed. Wheel destroyed. Lgt. Ion Engine destroyed. Med. Laser destroyed. D-53 Grenadier destroyed. Particle Gun destroyed. The unstable cave ceiling collapses. Welding Torch destroyed. D-53 Grenadier destroyed. The unstable cave ceiling collapses. Dropped Hcp. Storage Unit. Dropped Core Shielding. The unstable cave ceiling collapses. Acquired 8 matter. The unstable cave ceiling collapses. Acquired 22 matter. U-05 Engineer builds a Wall. U-05 Engineer lays Concrete. U-05 Engineer builds a Wall. U-05 Engineer lays Concrete. Map ----- +----------------------------------------------------+ | | | | | | | | | | | | | | | | | | | | | | | | | | | | | ?????????????????????????????????????????????????? | | ?????????????????????????????????????????????????? | | ????????????????????????????????????????#######??? | | ????????????????????????????###????????? #??? | | ?????????????????????####??## ##??????? #??? | | ??????????????????????% ?## #??????? ???? | | ??????????????????????# ?# #?????? """ ???? | | ??????????????????????# ## ####### """ #??? | | ??????????????????????# # g """ #??? | | ?????????????????????## #??? | | ?????????????????##### ##### #??? | | ???????????????#% !% @ ### ###?#########??? | | ??????????%=% = #?# ##???????????? | | ????????????=###%*### #?# ##??????????? | | ???????????????#????## ##?## #####??????? | | ?????????????????????######???### #??????? | | ?????????????????????????????##### #??????? | | ?????????????????????????????# # #??????? | | ????????????????????? ??#### # % #####??????? | | ????????????????????? ## # # #??????????? | | ???????????????????????# # #??????????? | | ???????????????????# # # ##??????????? | | ???????????????????? # # #???????????? | | ??????????????????? % ##???????????? | | ?????????????????????? # ## ##????????????? | | ????????????????????# # #?##??????????? | | ?????????????????????# ?# ## ## #??????????? | | ?????????????????????????####### ##?????????? | | ?????????????????????????????## #?????????? | | ????????????????????????????## ##????????? | | ????????????????????????????# # #????????? | | ????????????????????????????# ##????????? | | ????????????????????????????## #?????????? | | ?????????????????????????????## #?????????? | | ??????????????????????????????### " #?????????? | | ????????????????????????????????## ##?????????? | +----------------------------------------------------+ Best States ------------- Heat Dissipation 25 Energy Generation 10 Energy Capacity 250 Matter Stores 300 Matter Capacity 300 Sight Range 16 Terrain Scan Range 14 Terrain Scan Density 10 Armor Coverage 150 Core Shielding 20 Evasion (%) 44 Item Schematics ----------------- None Robot Schematics ------------------ None Fabricated ------------ Nothing Alien Tech Used ----------------- None Achievements -------------- None Challenges ------------ None Game ------ Seed CentriumSmartbombChronowheel Manual? 0 Play Time 00:11:46 Cumulative 52.0 hours Start 2022.10.14 @ 20:10:42 End 2022.10.14 @ 20:35:30 Sessions 1 Manual Loads 0 Difficulty Rogue Special Mode None Game No. 37 Rogue 37 Adventurer 0 Explorer 0 Win Type - Total 0 Types 0/0/0/0/0/0/0/0/0 Lore% 18 Gallery% 18 Achievement% 17 Wizard Run 0 Options --------- ASCII 0 Keyboard 0 Movement Numpad Keybinds 0 Fullscreen 1 Font 18/SmallcapsGlow Map View 76x50 Tactical HUD 0 Map Filters NONE Filters NONE Steam 1 RUN: 09ab02b2-1279-433e-bc8e-eabebfec3c1f